[Event "Peace Tournament 2019"]
[Site "Zagreb"]
[Date "2019.11.19"]
[Round "1.1"]
[White "Kozul, Zdenko"]
[Black "Bosiocic, Marin"]
[Result "1-0"]
[ECO "A09"]
[WhiteElo "2593"]
[BlackElo "2598"]
[Annotator "ChessBase"]
[PlyCount "47"]
[EventDate "2019.11.18"]
[EventCountry "CRO"]
[SourceTitle "playchess.com"]
[Source "ChessBase"]
[SourceQuality "1"]
[TimeControl "40/5400+30:1800+30"]

1. Nf3 {[%emt 0:00:30]} d5 {[%emt 0:00:30]} 2. c4 {[%emt 0:00:30]} d4 {[%emt 0:00:00]} 3. b4 {[%emt 0:01:30]} Bg4 {[%emt 0:00:00]} 4. g3 {[%emt 0:00:30]} Bxf3 {[%emt 0:01:30]} 5. exf3 {[%emt 0:00:30]} e5 {[%emt 0:00:00]} 6. Bg2 {[%emt 0:00:30]} Bxb4 {[%emt 0:06:00]} 7. Qa4+ {[%emt 0:03:30]} Nc6 {[%emt 0:00:00]} 8. f4 {[%emt 0:00:30]} e4 {[%emt 0:03:00]} 9. Bxe4 {[%emt 0:05:30]} Qe7 {[%emt 0:01:30]} 10. Kd1 {[%emt 0:00:30]} Kf8 {[%emt 0:05:30]} 11. Bxc6 {[%emt 0:24:30]} bxc6 {[%emt 0:01:30]} 12. Re1 {[%emt 0:00:30]} Qd6 {[%emt 0:00:30]} 13. a3 {[%emt 0:02:30]} Bc5 {[%emt 0:00:30]} 14. d3 {[%emt 0:00:00]} Nf6 {[%emt 0:13:30]} 15. Nd2 {[%emt 0:01:00]} Re8 {[%emt 0:03:30]} 16. Rxe8+ {[%emt 0:00:30]} Kxe8 {[%emt 0:00:30]} 17. Nb3 {[%emt 0:02:30]} Ng4 {[%emt 0:13:30]} 18. Ra2 {[%emt 0:01:30]} Bb6 {[%emt 0:04:30]} 19. f5 {[%emt 0:11:30]} Ne5 {[%emt 0:08:30]} 20. Bf4 {[%emt 0:00:30]} Kd7 {[%emt 0:03:30]} 21. c5 {[%emt 0:02:30]} Bxc5 {[%emt 0:01:30]} 22. Qa5 {[%emt 0:03:30]} Qd5 {[%emt 0:00:30]} 23. Nxc5+ {[%emt 0:00:30]} Kc8 {[%emt 0:00:30]} 24. Bxe5 {[%emt 0:00:00]} 1-0

[Event "Peace Tournament 2019"]
[Site "Zagreb"]
[Date "2019.11.19"]
[Round "1.2"]
[White "Zelcic, Robert"]
[Black "Nisipeanu, Liviu-Dieter"]
[Result "1-0"]
[ECO "C18"]
[WhiteElo "2526"]
[BlackElo "2656"]
[Annotator "ChessBase"]
[PlyCount "101"]
[EventDate "2019.11.18"]
[EventCountry "CRO"]
[SourceTitle "playchess.com"]
[Source "ChessBase"]
[SourceQuality "1"]
[TimeControl "40/5400+30:1800+30"]

1. e4 {[%emt 0:00:30]} e6 {[%emt 0:00:30]} 2. d4 {[%emt 0:00:00]} d5 {[%emt 0:00:00]} 3. Nc3 {[%emt 0:00:00]} Bb4 {[%emt 0:00:00]} 4. e5 {[%emt 0:00:00]} c5 {[%emt 0:00:30]} 5. a3 {[%emt 0:00:00]} Bxc3+ {[%emt 0:00:00]} 6. bxc3 {[%emt 0:00:00]} Ne7 {[%emt 0:00:00]} 7. Qg4 {[%emt 0:00:00]} O-O {[%emt 0:00:30]} 8. Bd3 {[%emt 0:00:00]} f5 {[%emt 0:00:30]} 9. exf6 {[%emt 0:00:00]} Rxf6 {[%emt 0:00:00]} 10. Qh5 {[%emt 0:00:30]} h6 {[%emt 0:02:00]} 11. Nf3 {[%emt 0:06:30]} Nbc6 {[%emt 0:10:30]} 12. O-O {[%emt 0:00:30]} c4 {[%emt 0:14:30]} 13. Be2 {[%emt 0:00:30]} Qa5 {[%emt 0:04:30]} 14. Bd2 {[%emt 0:06:30]} Bd7 {[%emt 0:01:30]} 15. Ne5 {[%emt 0:00:30]} Nxe5 {[%emt 0:05:30]} 16. Qxe5 {[%emt 0:02:30]} Nc6 {[%emt 0:12:30]} 17. Qe3 {[%emt 0:02:30]} Be8 {[%emt 0:02:30]} 18. Bg4 {[%emt 0:01:30]} Bg6 {[%emt 0:01:30]} 19. Bxe6+ {[%emt 0:03:30]} Kh7 {[%emt 0:01:30]} 20. Bd7 {[%emt 0:05:30]} Bxc2 {[%emt 0:04:30]} 21. Rfe1 {[%emt 0:00:30]} Raf8 {[%emt 0:05:30]} 22. f3 {[%emt 0:02:30]} Qc7 {[%emt 0:02:30]} 23. Bxc6 {[%emt 0:01:30]} bxc6 {[%emt 0:02:30]} 24. Qf2 {[%emt 0:00:30]} Bd3 {[%emt 0:01:30]} 25. Re5 {[%emt 0:06:30]} R8f7 {[%emt 0:06:30]} 26. h4 {[%emt 0:05:30]} Qb8 {[%emt 0:02:57]} 27. a4 {[%emt 0:17:30]} Qb2 {[%emt 0:02:07]} 28. Rae1 {[%emt 0:00:00]} Qa3 {[%emt 0:02:11]} 29. Re8 {[%emt 0:02:00]} Rf8 {[%emt 0:03:45]} 30. Qg3 {[%emt 0:02:30]} Rxe8 {[%emt 0:02:06]} 31. Rxe8 {[%emt 0:00:30]} Qb2 {[%emt 0:04:54]} 32. Qb8 {[%emt 0:04:30]} Qxb8 {[%emt 0:01:57]} 33. Rxb8 {[%emt 0:00:30]} Rf7 {[%emt 0:02:22]} 34. a5 {[%emt 0:00:30]} h5 {[%emt 0:00:38]} 35. Bg5 {[%emt 0:00:30]} Bc2 {[%emt 0:01:12]} 36. a6 {[%emt 0:00:30]} Ba4 {[%emt 0:00:24]} 37. Rb7 {[%emt 0:00:30]} Kg8 {[%emt 0:00:21]} 38. Be7 {[%emt 0:00:30]} Bb5 {[%emt 0:00:02]} 39. Rxa7 {[%emt 0:00:30]} Bxa6 {[%emt 0:00:05]} 40. Ra8+ {[%emt 0:00:00]} Kh7 {[%emt 0:00:00]} 41. Bd6 {[%emt 0:05:00]} Bb7 {[%emt 0:05:59]} 42. Re8 {[%emt 0:01:30]} Rd7 {[%emt 0:03:30]} 43. Be5 {[%emt 0:00:30]} Ba6 {[%emt 0:01:30]} 44. Ra8 {[%emt 0:03:30]} Bb7 {[%emt 0:00:30]} 45. Rf8 {[%emt 0:00:00]} Re7 {[%emt 0:05:39]} 46. Rf5 {[%emt 0:02:00]} Kh6 {[%emt 0:06:32]} 47. Bf4+ {[%emt 0:00:30]} Kg6 {[%emt 0:00:02]} 48. Rg5+ {[%emt 0:00:00]} Kf7 {[%emt 0:00:05]} 49. Rxh5 {[%emt 0:00:00]} Re2 {[%emt 0:00:13]} 50. Rf5+ {[%emt 0:00:30]} Ke6 {[%emt 0:00:58]} 51. Rg5 {[%emt 0:00:30]} 1-0

[Event "Peace Tournament 2019"]
[Site "Zagreb"]
[Date "2019.11.19"]
[Round "1.6"]
[White "Stevic, Hrvoje"]
[Black "Palac, Mladen"]
[Result "1/2-1/2"]
[ECO "C54"]
[WhiteElo "2563"]
[BlackElo "2550"]
[Annotator "ChessBase"]
[PlyCount "40"]
[EventDate "2019.11.18"]
[EventCountry "CRO"]
[SourceTitle "playchess.com"]
[Source "ChessBase"]
[SourceQuality "1"]
[TimeControl "40/5400+30:1800+30"]

1. e4 {[%emt 0:00:30]} e5 {[%emt 0:00:30]} 2. Nf3 {[%emt 0:00:00]} Nc6 {[%emt 0:00:30]} 3. Bc4 {[%emt 0:01:00]} Bc5 {[%emt 0:00:30]} 4. O-O {[%emt 0:00:30]} Nf6 {[%emt 0:01:30]} 5. d3 {[%emt 0:01:30]} d6 {[%emt 0:04:30]} 6. c3 {[%emt 0:00:30]} O-O {[%emt 0:02:30]} 7. Re1 {[%emt 0:04:30]} a6 {[%emt 0:04:30]} 8. a4 {[%emt 0:02:30]} Ba7 {[%emt 0:00:30]} 9. h3 {[%emt 0:05:30]} h6 {[%emt 0:00:30]} 10. Nbd2 {[%emt 0:00:00]} Re8 {[%emt 0:00:00]} 11. Nf1 {[%emt 0:00:00]} Be6 {[%emt 0:00:00]} 12. Bxe6 {[%emt 0:00:30]} Rxe6 {[%emt 0:00:00]} 13. Be3 {[%emt 0:00:30]} Bxe3 {[%emt 0:00:00]} 14. Nxe3 {[%emt 0:00:00]} Ne7 {[%emt 0:00:30]} 15. Qb3 {[%emt 0:01:00]} b6 {[%emt 0:00:00]} 16. Rad1 {[%emt 0:00:30]} Ng6 {[%emt 0:00:00]} 17. g3 {[%emt 0:00:00]} Qd7 {[%emt 0:00:30]} 18. Nf5 {[%emt 0:01:00]} Ree8 {[%emt 0:00:30]} 19. Kh2 {[%emt 0:00:30]} Rad8 {[%emt 0:00:00]} 20. c4 {[%emt 0:01:30]} a5 {[%emt 0:00:00]} 1/2-1/2

[Event "Peace Tournament 2019"]
[Site "Zagreb"]
[Date "2019.11.22"]
[Round "4.3"]
[White "Ragger, Markus"]
[Black "Stevic, Hrvoje"]
[Result "1-0"]
[ECO "D20"]
[WhiteElo "2669"]
[BlackElo "2563"]
[Annotator "RC"]
[PlyCount "86"]
[EventDate "2019.11.19"]
[EventType "tourn"]
[EventCountry "CRO"]
[SourceTitle "playchess.com"]
[Source "ChessBase"]
[SourceQuality "1"]
[TimeControl "40/5400+30:1800+30"]

1. d4 {[%emt 0:00:30]} d5 {[%emt 0:00:30]} 2. c4 {[%emt 0:00:00]} dxc4 {[%emt 0:00:00]} 3. e4 {[%emt 0:00:00]} e5 {[%emt 0:00:00]} 4. Nf3 {[%emt 0:00:30]} Bb4+ {[%emt 0:00:30]} 5. Nc3 {[%emt 0:00:30]} exd4 {[%emt 0:00:30]} 6. Nxd4 {[%emt 0:00:30]} Ne7 {[%emt 0:00:30]} 7. Bf4 {[%emt 0:00:00]} Ng6 {[%emt 0:00:30]} 8. Qa4+ {[%emt 0:01:00]} c6 {[%emt 0:10:30]} 9. Qxb4 {[%emt 0:00:30]} Nxf4 {[%emt 0:01:30]} 10. O-O-O {[%emt 0:00:30]} Qe7 {[%emt 0:06:30]} 11. Qxe7+ {[%emt 0:01:30]} Kxe7 {[%emt 0:00:30]} 12. Nf5+ {[%emt 0:00:30]} Bxf5 {[%emt 0:02:30]} 13. exf5 {[%emt 0:00:30]} Re8 {[%emt 0:32:30]} 14. Bxc4 {[%emt 0:11:30]} b5 {[%emt 0:00:30]} 15. Rhe1+ {[%emt 0:18:30]} Kf8 {[%emt 0:00:00]} 16. Rxe8+ {[%emt 0:00:30]} Kxe8 {[%emt 0:00:00]} 17. Rd4 {[%emt 0:00:30]} bxc4 {[%emt 0:05:30]} 18. Rxf4 {[%emt 0:00:30]} Nd7 {[%emt 0:00:30]} 19. Rxc4 {[%emt 0:00:30]} c5 {[%emt 0:05:30]} 20. Rh4 {[%emt 0:15:30]} h6 {[%emt 0:01:30]} 21. Nd5 {[%emt 0:00:30]} Rc8 {[%emt 0:04:30]} 22. f6 {[%emt 0:02:30]} Kf8 {[%emt 0:06:30]} 23. fxg7+ {[%emt 0:04:30]} Kxg7 {[%emt 0:00:30]} 24. Rg4+ {[%emt 0:11:30]} Kf8 {[%emt 0:00:30]} 25. Rg8+ {[%emt 0:03:30]} Kxg8 {[%emt 0:00:00]} 26. Ne7+ {[%emt 0:00:00]} Kg7 {[%emt 0:01:00]} 27. Nxc8 {[%emt 0:00:00]} a6 {[%emt 0:00:00]} 28. Kd2 {[%emt 0:00:30]} Kf6 {[%emt 0:00:00]} 29. Nd6 {[%emt 0:00:30]} Ke6 {[%emt 0:00:30]} 30. Nc4 {[%emt 0:00:30]} Nf6 {[%emt 0:01:30]} 31. f3 {[%emt 0:00:30]} Nd5 {[%emt 0:00:30]} 32. Ne3 {[%emt 0:02:30]} Nb6 {[%emt 0:02:44]} 33. Kd3 {[%emt 0:04:30]} f5 {[%emt 0:00:49]} 34. g4 {[%emt 0:04:26]} fxg4 {[%emt 0:03:19]} 35. fxg4 {[%emt 0:00:41]} Nd7 {[%emt 0:00:08]} 36. Ke4 {[%emt 0:02:15]} Ne5 {[%emt 0:01:17]} 37. b3 {[%emt 0:03:05]} Nc6 {[%emt 0:04:29]} 38. Nd5 {[%emt 0:01:05]} a5 {[%emt 0:01:36]} 39. Ne3 {[%emt 0:03:59]} Kf6 {[%emt 0:05:38]} 40. h4 {[%emt 0:00:00]} Ke6 {[%emt 0:00:00]} 41. Nc4 {[%emt 0:09:29]} Nb4 {[%emt 0:03:00]} 42. a3 {[%emt 0:02:30]} Nc6 {[%emt 0:03:30]} 43. a4 {[%emt 0:01:30]} Nb8 {[%emt 0:00:30]} 1-0

[Event "Peace Tournament 2019"]
[Site "Zagreb"]
[Date "2019.11.23"]
[Round "5"]
[White "Cheparinov, Ivan"]
[Black "Bacrot, Etienne"]
[Result "1/2-1/2"]
[ECO "D37"]
[WhiteElo "2679"]
[BlackElo "2669"]
[Annotator "ChessBase"]
[PlyCount "65"]
[EventDate "2019.??.??"]
[EventCountry "CRO"]
[SourceTitle "playchess.com"]
[Source "ChessBase"]
[SourceQuality "1"]
[TimeControl "40/5400+30:1800+30"]

1. d4 d5 2. Nf3 e6 3. c4 Be7 4. Nc3 Nf6 5. Bf4 O-O 6. e3 b6 7. Bd3 Ba6 8. cxd5 Nxd5 9. Nxd5 Qxd5 10. O-O Rc8 11. Re1 Bxd3 12. Qxd3 Nd7 13. e4 Qb7 14. Rad1 Re8 15. d5 exd5 16. exd5 Bd6 17. Qb5 Nf6 18. Be5 a6 19. Qb3 Nd7 20. Bxd6 cxd6 21. Nd4 Nf6 22. Nc6 Qd7 23. h3 b5 24. a4 bxa4 25. Qxa4 Qb7 26. Qa3 Nxd5 27. Qxd6 Nf6 28. Nd8 Rxe1+ 29. Rxe1 Qd7 30. Qxd7 Nxd7 31. Nc6 Kf8 32. Rd1 Rc8 33. Nb4 1/2-1/2

[Event "Peace Tournament 2019"]
[Site "Zagreb"]
[Date "2019.11.23"]
[Round "5"]
[White "Ivanchuk, Vassily"]
[Black "Zelcic, Robert"]
[Result "1-0"]
[ECO "E21"]
[WhiteElo "2679"]
[BlackElo "2526"]
[Annotator "ChessBase"]
[PlyCount "121"]
[EventDate "2019.??.??"]
[EventCountry "CRO"]
[SourceTitle "playchess.com"]
[Source "ChessBase"]
[SourceQuality "1"]
[TimeControl "40/5400+30:1800+30"]

1. d4 Nf6 2. c4 e6 3. Nc3 Bb4 4. Nf3 b6 5. Bd2 Bb7 6. g3 O-O 7. Bg2 c5 8. dxc5 bxc5 9. O-O d6 10. Qc2 Nbd7 11. Rfd1 Qe7 12. Bf4 e5 13. Bg5 Bxc3 14. Qxc3 h6 15. Bxf6 Nxf6 16. Nh4 Bxg2 17. Nxg2 Rfb8 18. Ne3 Qe6 19. f3 Rb6 20. Rd2 g6 21. Rad1 Rab8 22. b3 Kh7 23. Kg2 Ra8 24. Qa5 h5 25. h3 Kg7 26. Kh2 Kh7 27. Ng2 Ng8 28. Ne3 Ne7 29. Kg2 Kg7 30. Rd3 f5 31. Nd5 Nxd5 32. Rxd5 e4 33. Rxd6 exf3+ 34. Kxf3 Rxd6 35. Qc7+ Kh8 36. Qxd6 Qe4+ 37. Kf2 Re8 38. Rd2 Qe3+ 39. Kg2 Kh7 40. Qf4 Qe7 41. Kf2 a5 42. h4 a4 43. bxa4 Ra8 44. Rd6 Rxa4 45. Rc6 Ra7 46. a4 Qd7 47. Rxc5 Qxa4 48. Rc7+ Rxc7 49. Qxc7+ Kh6 50. Qe5 Kh7 51. c5 Qc6 52. Qe7+ Kh6 53. Qd6 Qh1 54. c6 Qh2+ 55. Ke3 Qg1+ 56. Kd2 Qb1 57. c7 Qa2+ 58. Ke3 Qa7+ 59. Kd3 Qa8 60. Qc5 Qc8 61. Kd2 1-0

[Event "Peace Tournament 2019"]
[Site "Zagreb"]
[Date "2019.11.23"]
[Round "5"]
[White "Dreev, Aleksey"]
[Black "Bosiocic, Marin"]
[Result "0-1"]
[ECO "E08"]
[WhiteElo "2671"]
[BlackElo "2598"]
[Annotator "ChessBase"]
[PlyCount "114"]
[EventDate "2019.??.??"]
[EventCountry "CRO"]
[SourceTitle "playchess.com"]
[Source "ChessBase"]
[SourceQuality "1"]
[TimeControl "40/5400+30:1800+30"]

1. d4 Nf6 2. Nf3 e6 3. c4 d5 4. g3 Bb4+ 5. Bd2 Be7 6. Bg2 c6 7. Qc2 Nbd7 8. O-O b6 9. cxd5 cxd5 10. Rc1 Bb7 11. Bf4 O-O 12. Bc7 Qe8 13. Qb3 Ne4 14. Nc3 Nxc3 15. Rxc3 Ba6 16. Qd1 Nf6 17. Ne5 Rc8 18. Rac1 Ne4 19. R3c2 Qa4 20. Bf1 f6 21. Nf3 Qxa2 22. Ra1 Qb3 23. Qc1 Bb5 24. Rxa7 Ba4 25. Rc3 Nxc3 26. bxc3 Kh8 27. Qe3 Bd7 28. Bd6 Rxc3 29. Bxe7 Rxe3 30. Bxf8 Rxf3 31. exf3 Kg8 32. Bxg7 Kxg7 33. Rxd7+ Kf8 34. Rxh7 b5 35. Rb7 b4 36. Bb5 Qxf3 37. h4 Qd1+ 38. Kg2 Qxd4 39. Ba4 Qe4+ 40. Kg1 d4 41. Rd7 b3 42. Bxb3 Qb1+ 43. Kg2 Qxb3 44. Rxd4 e5 45. Rg4 Qb7+ 46. Kg1 Qf3 47. Rb4 e4 48. Rb8+ Kf7 49. Rb7+ Ke6 50. Rb8 Kf5 51. Rg8 Qd1+ 52. Kg2 Qe2 53. Kg1 e3 54. fxe3 Ke4 55. Rf8 Kf3 56. Rxf6+ Kxg3 57. Rg6+ Kh3 0-1

[Event "Peace Tournament 2019"]
[Site "Zagreb"]
[Date "2019.11.23"]
[Round "5"]
[White "Melkumyan, Hrant"]
[Black "Kozul, Zdenko"]
[Result "1-0"]
[ECO "E93"]
[WhiteElo "2661"]
[BlackElo "2593"]
[Annotator "ChessBase"]
[PlyCount "91"]
[EventDate "2019.??.??"]
[EventCountry "CRO"]
[SourceTitle "playchess.com"]
[Source "ChessBase"]
[SourceQuality "1"]
[TimeControl "40/5400+30:1800+30"]

1. d4 Nf6 2. c4 g6 3. Nc3 Bg7 4. e4 d6 5. Nf3 O-O 6. Be2 e5 7. O-O Qe7 8. Bg5 Nbd7 9. d5 h6 10. Bh4 g5 11. Bg3 Nh5 12. Ne1 Nf4 13. Nc2 Nxe2+ 14. Qxe2 f5 15. exf5 Rxf5 16. Ne3 Rf7 17. Ne4 Nf6 18. f3 Nh5 19. Qc2 Nf4 20. c5 dxc5 21. Nxc5 b6 22. Ne4 Bb7 23. Rad1 Rd8 24. Qc4 Qd7 25. d6 Rc8 26. dxc7 Qxc7 27. Nd6 Qxc4 28. Nexc4 Rxc4 29. Nxc4 Ba6 30. b3 Rc7 31. Rfe1 Bxc4 32. bxc4 Rxc4 33. Bxf4 gxf4 34. Rd8+ Kf7 35. Rd7+ Kf6 36. Rxa7 Bf8 37. h4 Bc5+ 38. Kh2 Bd4 39. Kh3 Rc2 40. a4 h5 41. a5 bxa5 42. Rxa5 Rc7 43. Ra6+ Kg7 44. Rb1 Bf2 45. Rb5 Bd4 46. Rd5 1-0

[Event "Peace Tournament 2019"]
[Site "Zagreb"]
[Date "2019.11.23"]
[Round "5"]
[White "Stevic, Hrvoje"]
[Black "Nisipeanu, Liviu-Dieter"]
[Result "1/2-1/2"]
[ECO "B11"]
[WhiteElo "2563"]
[BlackElo "2656"]
[Annotator "ChessBase"]
[PlyCount "28"]
[EventDate "2019.??.??"]
[EventCountry "CRO"]
[SourceTitle "playchess.com"]
[Source "ChessBase"]
[SourceQuality "1"]
[TimeControl "40/5400+30:1800+30"]

1. e4 c6 2. Nf3 d5 3. Nc3 Bg4 4. h3 Bxf3 5. Qxf3 e6 6. Be2 Nf6 7. O-O dxe4 8. Nxe4 Nxe4 9. Qxe4 Qd5 10. Bf3 Qxe4 11. Bxe4 Nd7 12. b4 O-O-O 13. Rb1 Be7 14. g3 h5 1/2-1/2

[Event "Peace Tournament 2019"]
[Site "Zagreb"]
[Date "2019.11.23"]
[Round "5"]
[White "Palac, Mladen"]
[Black "Ragger, Markus"]
[Result "1/2-1/2"]
[ECO "C88"]
[WhiteElo "2550"]
[BlackElo "2669"]
[Annotator "ChessBase"]
[PlyCount "25"]
[EventDate "2019.??.??"]
[EventCountry "CRO"]
[SourceTitle "playchess.com"]
[Source "ChessBase"]
[SourceQuality "1"]
[TimeControl "40/5400+30:1800+30"]

1. e4 e5 2. Nf3 Nc6 3. Bb5 a6 4. Ba4 Nf6 5. O-O Be7 6. Re1 b5 7. Bb3 O-O 8. a4 b4 9. d4 d6 10. dxe5 Nxe5 11. Nxe5 dxe5 12. Nd2 Bc5 13. h3 1/2-1/2

[Event "Peace Tournament 2019"]
[Site "Zagreb"]
[Date "2019.11.29"]
[Round "10.1"]
[White "Bosiocic, Marin"]
[Black "Nisipeanu, Liviu-Dieter"]
[Result "1/2-1/2"]
[ECO "B12"]
[WhiteElo "2598"]
[BlackElo "2656"]
[Annotator "RC"]
[PlyCount "46"]
[EventDate "2019.11.19"]
[EventType "tourn"]
[EventCountry "CRO"]
[SourceTitle "playchess.com"]
[Source "ChessBase"]
[SourceQuality "1"]
[TimeControl "40/5400+30:1800+30"]

1. e4 {[%emt 0:00:30]} c6 {[%emt 0:00:30]} 2. d4 {[%emt 0:00:00]} d5 {[%emt 0:00:00]} 3. e5 {[%emt 0:00:00]} Bf5 {[%emt 0:00:00]} 4. Nf3 {[%emt 0:00:00]} e6 {[%emt 0:00:00]} 5. Be2 {[%emt 0:00:00]} Ne7 {[%emt 0:00:00]} 6. O-O {[%emt 0:00:30]} Bg6 {[%emt 0:00:30]} 7. c3 {[%emt 0:01:30]} Nf5 {[%emt 0:00:30]} 8. Nbd2 {[%emt 0:00:30]} h5 {[%emt 0:01:30]} 9. a4 {[%emt 0:00:30]} Nd7 {[%emt 0:01:30]} 10. a5 {[%emt 0:01:30]} a6 {[%emt 0:00:30]} 11. b4 {[%emt 0:00:30]} h4 {[%emt 0:08:30]} 12. Ne1 {[%emt 0:01:30]} f6 {[%emt 0:06:30]} 13. Nd3 {[%emt 0:01:30]} Qc7 {[%emt 0:24:30]} 14. Nf3 {[%emt 0:00:00]} h3 {[%emt 0:00:30]} 15. g3 {[%emt 0:08:00]} Bf7 {[%emt 0:00:30]} 16. Nc5 {[%emt 0:10:30]} O-O-O {[%emt 0:25:30]} 17. Rb1 {[%emt 0:01:30]} Re8 {[%emt 0:00:30]} 18. Nxa6 {[%emt 0:03:30]} bxa6 {[%emt 0:00:30]} 19. Bxa6+ {[%emt 0:00:30]} Kd8 {[%emt 0:05:30]} 20. b5 {[%emt 0:00:00]} Qxa5 {[%emt 0:03:05]} 21. Bd2 {[%emt 0:04:00]} Bh5 {[%emt 0:00:20]} 22. Ra1 {[%emt 0:06:30]} Qc7 {[%emt 0:04:08]} 23. Re1 {[%emt 0:07:30]} c5 {[%emt 0:04:23]} 1/2-1/2

[Event "Peace Tournament 2019"]
[Site "Zagreb"]
[Date "2019.11.30"]
[Round "11.3"]
[White "Cheparinov, Ivan"]
[Black "Ivanchuk, Vassily"]
[Result "1/2-1/2"]
[ECO "D16"]
[WhiteElo "2679"]
[BlackElo "2679"]
[Annotator "ChessBase"]
[PlyCount "73"]
[EventDate "2019.11.19"]
[EventType "tourn"]
[EventCountry "CRO"]
[SourceTitle "playchess.com"]
[Source "ChessBase"]
[SourceQuality "1"]
[TimeControl "40/5400+30:1800+30"]

1. d4 {[%emt 0:00:30]} d5 {[%emt 0:00:30]} 2. c4 {[%emt 0:00:00]} c6 {[%emt 0:00:00]} 3. Nf3 {[%emt 0:00:00]} Nf6 {[%emt 0:00:00]} 4. Nc3 {[%emt 0:00:00]} dxc4 {[%emt 0:00:30]} 5. a4 {[%emt 0:00:00]} e6 {[%emt 0:00:30]} 6. e3 {[%emt 0:00:30]} c5 {[%emt 0:00:00]} 7. Bxc4 {[%emt 0:00:30]} cxd4 {[%emt 0:02:00]} 8. Nxd4 {[%emt 0:00:00]} a6 {[%emt 0:00:30]} 9. O-O {[%emt 0:02:00]} Bd6 {[%emt 0:01:30]} 10. Qe2 {[%emt 0:06:30]} Qc7 {[%emt 0:03:30]} 11. h3 {[%emt 0:05:30]} Bd7 {[%emt 0:02:30]} 12. e4 {[%emt 0:12:30]} Nc6 {[%emt 0:03:30]} 13. Nxc6 {[%emt 0:03:30]} Bxc6 {[%emt 0:00:30]} 14. Rd1 {[%emt 0:09:30]} Nd7 {[%emt 0:29:30]} 15. Be3 {[%emt 0:11:30]} O-O {[%emt 0:02:30]} 16. Rac1 {[%emt 0:01:30]} Rac8 {[%emt 0:12:30]} 17. Bb5 {[%emt 0:09:30]} Nb8 {[%emt 0:12:30]} 18. Bxc6 {[%emt 0:04:30]} Nxc6 {[%emt 0:00:30]} 19. Nd5 {[%emt 0:03:30]} Qb8 {[%emt 0:02:30]} 20. Nb6 {[%emt 0:01:30]} Rcd8 {[%emt 0:00:30]} 21. g3 {[%emt 0:04:30]} Rfe8 {[%emt 0:00:30]} 22. Kg2 {[%emt 0:01:30]} Bc7 {[%emt 0:02:30]} 23. h4 {[%emt 0:10:18]} Rxd1 {[%emt 0:01:30]} 24. Rxd1 {[%emt 0:00:18]} Rd8 {[%emt 0:00:30]} 25. f4 {[%emt 0:03:14]} Rxd1 {[%emt 0:05:56]} 26. Qxd1 {[%emt 0:00:03]} Bxb6 {[%emt 0:00:02]} 27. Bxb6 {[%emt 0:00:09]} Qc8 {[%emt 0:00:02]} 28. Qd6 {[%emt 0:00:54]} Nb8 {[%emt 0:00:04]} 29. Kf3 {[%emt 0:04:00]} Nd7 {[%emt 0:04:31]} 30. Bd4 {[%emt 0:00:01]} h5 {[%emt 0:02:37]} 31. b4 {[%emt 0:01:42]} Qc4 {[%emt 0:03:59]} 32. Qxd7 {[%emt 0:00:04]} Qd3+ {[%emt 0:00:05]} 33. Kf2 {[%emt 0:00:11]} Qd2+ {[%emt 0:00:07]} 34. Kf1 {[%emt 0:00:13]} Qd1+ {[%emt 0:00:09]} 35. Kg2 {[%emt 0:01:07]} Qd2+ {[%emt 0:00:10]} 36. Kh3 {[%emt 0:01:47]} Qd1 {[%emt 0:00:16]} 37. Kg2 {[%emt 0:00:03]} 1/2-1/2

[Event "Peace Tournament 2019"]
[Site "Zagreb"]
[Date "2019.11.30"]
[Round "11.5"]
[White "Ragger, Markus"]
[Black "Zelcic, Robert"]
[Result "0-1"]
[ECO "E04"]
[WhiteElo "2669"]
[BlackElo "2526"]
[Annotator "ChessBase"]
[PlyCount "104"]
[EventDate "2019.11.19"]
[EventType "tourn"]
[EventCountry "CRO"]
[SourceTitle "playchess.com"]
[Source "ChessBase"]
[SourceQuality "1"]
[TimeControl "40/5400+30:1800+30"]

1. d4 {[%emt 0:00:30]} Nf6 {[%emt 0:00:30]} 2. c4 {[%emt 0:00:00]} e6 {[%emt 0:00:00]} 3. Nf3 {[%emt 0:00:00]} d5 {[%emt 0:00:00]} 4. g3 {[%emt 0:00:00]} dxc4 {[%emt 0:00:30]} 5. Bg2 {[%emt 0:00:00]} c5 {[%emt 0:00:00]} 6. O-O {[%emt 0:00:30]} Nc6 {[%emt 0:00:00]} 7. dxc5 {[%emt 0:00:00]} Qxd1 {[%emt 0:00:30]} 8. Rxd1 {[%emt 0:00:00]} Bxc5 {[%emt 0:00:00]} 9. Nbd2 {[%emt 0:00:00]} c3 {[%emt 0:00:00]} 10. bxc3 {[%emt 0:00:00]} O-O {[%emt 0:00:30]} 11. Nb3 {[%emt 0:00:30]} Be7 {[%emt 0:00:00]} 12. Nfd4 {[%emt 0:00:00]} Bd7 {[%emt 0:00:00]} 13. Nb5 {[%emt 0:00:00]} Rfd8 {[%emt 0:13:30]} 14. Nd6 {[%emt 0:17:30]} Be8 {[%emt 0:05:30]} 15. Bf4 {[%emt 0:09:30]} Bxd6 {[%emt 0:01:30]} 16. Rxd6 {[%emt 0:03:30]} Rxd6 {[%emt 0:04:30]} 17. Bxd6 {[%emt 0:00:30]} Rd8 {[%emt 0:00:30]} 18. Ba3 {[%emt 0:02:30]} b6 {[%emt 0:07:30]} 19. Rc1 {[%emt 0:11:30]} a5 {[%emt 0:07:30]} 20. Nd4 {[%emt 0:16:30]} Ne5 {[%emt 0:00:00]} 21. Rb1 {[%emt 0:07:30]} Nc4 {[%emt 0:04:00]} 22. Be7 {[%emt 0:00:30]} Rc8 {[%emt 0:01:30]} 23. Bxf6 {[%emt 0:02:30]} gxf6 {[%emt 0:00:30]} 24. Bb7 {[%emt 0:00:30]} Rc5 {[%emt 0:08:30]} 25. Ba6 {[%emt 0:03:30]} e5 {[%emt 0:00:30]} 26. Nf5 {[%emt 0:07:24]} Bd7 {[%emt 0:01:30]} 27. Bxc4 {[%emt 0:01:18]} Bxf5 {[%emt 0:00:30]} 28. Bd3 {[%emt 0:00:02]} e4 {[%emt 0:04:30]} 29. Ba6 {[%emt 0:00:12]} Rxc3 {[%emt 0:00:30]} 30. Kg2 {[%emt 0:04:50]} Ra3 {[%emt 0:05:30]} 31. Bc4 {[%emt 0:03:30]} Ra4 {[%emt 0:00:00]} 32. Bb3 {[%emt 0:03:01]} Rd4 {[%emt 0:03:00]} 33. e3 {[%emt 0:02:41]} Rd2 {[%emt 0:02:30]} 34. Bc4 {[%emt 0:00:04]} Rc2 {[%emt 0:00:30]} 35. Bb3 {[%emt 0:02:17]} Rd2 {[%emt 0:04:30]} 36. Bc4 {[%emt 0:00:22]} Bg4 {[%emt 0:00:30]} 37. Rxb6 {[%emt 0:00:33]} Bf3+ {[%emt 0:00:30]} 38. Kh3 {[%emt 0:00:03]} Rxf2 {[%emt 0:00:00]} 39. g4 {[%emt 0:00:29]} Be2 {[%emt 0:01:00]} 40. Rc6 {[%emt 0:00:00]} Kg7 {[%emt 0:00:00]} 41. Kg3 {[%emt 0:11:14]} Rf3+ {[%emt 0:10:00]} 42. Kg2 {[%emt 0:00:30]} Bxc4 {[%emt 0:00:30]} 43. Rxc4 {[%emt 0:00:30]} Rxe3 {[%emt 0:00:00]} 44. Ra4 {[%emt 0:00:00]} h5 {[%emt 0:00:00]} 45. gxh5 {[%emt 0:08:27]} f5 {[%emt 0:02:30]} 46. Rxa5 {[%emt 0:00:01]} f4 {[%emt 0:02:30]} 47. Rf5 {[%emt 0:00:24]} Re2+ {[%emt 0:01:30]} 48. Kf1 {[%emt 0:02:14]} f3 {[%emt 0:00:00]} 49. a4 {[%emt 0:00:02]} Rxh2 {[%emt 0:01:00]} 50. a5 {[%emt 0:00:07]} Ra2 {[%emt 0:00:00]} 51. Rf4 {[%emt 0:03:46]} Ra4 {[%emt 0:01:00]} 52. Kf2 {[%emt 0:00:55]} e3+ {[%emt 0:00:30]} 0-1